bitfinex-derivatives/quotes_BTCF0:USTF0_20210707
["timestamp","ask_amount","ask_price","bid_price","bid_amount"]
[1625685175150,12.8654196,34634.0,34633.0,0.1432]
[1625685177100,11.8654196,34634.0,34633.0,0.1432]
[1625685177250,12.8654196,34634.0,34633.0,0.1432]
[1625685177625,11.8654196,34634.0,34633.0,0.1432]
[1625685177775,12.8654196,34634.0,34633.0,0.1432]
[1625685179883,12.8654196,34634.0,34633.0,0.0426]
[1625685183338,11.8654196,34634.0,34633.0,0.0426]
[1625685183487,11.5946196,34634.0,34633.0,0.0426]
[1625685184844,10.09169261,34634.0,34633.0,0.0426]
[1625685185592,11.59039867,34634.0,34633.0,0.0426]
[1625685185743,12.59039867,34634.0,34633.0,0.0426]
[1625685186121,11.59039867,34634.0,34633.0,0.0426]
[1625685186272,10.09169261,34634.0,34633.0,0.0426]
[1625685187406,5.40109261,34634.0,34633.0,0.0426]
[1625685187710,5.40109261,34634.0,34633.0,0.2596]
[1625685187997,5.40109261,34634.0,34633.0,4.3523]
[1625685188601,2.89442988,34634.0,34633.0,6.55544269]
[1625685188752,1.65115593,34634.0,34633.0,6.55544269]
[1625685189051,1.17000505,34634.0,34633.0,6.55544269]
[1625685189201,1.17000505,34634.0,34633.0,6.5602836]
[1625685189355,5.088e-05,34634.0,34633.0,9.10185184]
[1625685189503,5.088e-05,34634.0,34633.0,9.58300272]
[1625685191152,5.088e-05,34634.0,34633.0,8.22749966]
[1625685191753,0.50079849,34634.0,34633.0,8.22749966]
[1625685192053,0.50079849,34634.0,34633.0,8.22265875]
[1625685192353,0.50079849,34634.0,34633.0,8.22749953]
[1625685192577,0.50079849,34634.0,34633.0,8.22265875]
[1625685192735,1.16833661,34634.0,34633.0,7.03659357]
[1625685193931,2.16928197,34634.0,34633.0,7.03659357]
[1625685194460,2.44106197,34634.0,34633.0,2.94389357]
[1625685194607,2.44106197,34634.0,34633.0,2.48631813]
[1625685194908,4.93973096,34634.0,34633.0,0.28317544]
[1625685195358,8.98963096,34634.0,34633.0,0.28317544]
[1625685195508,9.2302064,34634.0,34633.0,0.28317544]
[1625685199341,9.2302064,34634.0,34633.0,0.28801705]
[1625685199488,5.1803064,34634.0,34633.0,0.28801705]
[1625685199790,3.84769404,34634.0,34633.0,0.28801705]
[1625685199940,3.57591404,34634.0,34633.0,0.28801705]
[1625685200092,3.57591404,34634.0,34633.0,0.62690112]
[1625685200398,2.40985741,34634.0,34633.0,1.47412106]
[1625685200541,0.74137393,34634.0,34633.0,2.49074973]
[1625685200840,1.40860512,34634.0,34633.0,2.49074973]
[1625685200993,0.74137393,34634.0,34633.0,3.67679464]
[1625685201669,1.07582451,34634.0,34633.0,3.67679464]
[1625685201970,0.5750769,34634.0,34633.0,3.67679464]
[1625685202278,0.24062632,34634.0,34633.0,3.67679464]
[1625685202421,1.0769999,34634.0,34633.0,3.67679464]
[1625685202720,1.41124274,34634.0,34633.0,2.49074973]
[1625685202871,0.57522022,34634.0,34633.0,3.67677781]
[1625685203175,1.07699204,34634.0,34633.0,3.67677781]
[1625685203470,1.41117936,34634.0,34633.0,2.49074973]
[1625685204825,0.74239814,34634.0,34633.0,3.67674186]
[1625685205048,1.41161927,34634.0,34633.0,2.49074973]
[1625685208134,1.41161927,34634.0,34633.0,3.67684557]
[1625685208576,1.41161927,34634.0,34633.0,2.49074973]
[1625685209175,2.41678833,34634.0,34633.0,2.49074973]
[1625685216382,2.41678833,34634.0,34633.0,2.81520973]
[1625685216907,0.24062632,34634.0,34633.0,0.61247705]
[1625685217223,2.42104719,34634.0,34633.0,2.81566447]
[1625685217520,1.41476359,34634.0,34633.0,4.00191134]
[1625685218640,1.0795661,34634.0,34633.0,4.00191134]
[1625685218870,0.67126051,34635.0,34633.0,4.00191134]
[1625685219022,1.58492868,34640.0,34633.0,5.35749126]
[1625685219023,1.0071424,34637.0,34633.0,5.35749126]
[1625685219177,0.002,34640.0,34634.0,2.20277057]
[1625685219178,1.00978431,34640.0,34634.0,2.20277057]
[1625685219316,0.001,34635.0,34634.0,3.56316409]
[1625685219467,0.001,34635.0,34634.0,1.5249121]
[1625685219617,0.001,34635.0,34634.0,1.76548754]
[1625685219774,0.001,34635.0,34634.0,5.32779064]
[1625685223522,0.001,34635.0,34634.0,3.80287854]
[1625685224424,0.001,34635.0,34634.0,5.32680184]
[1625685229304,0.001,34636.0,34634.0,5.32680184]
[1625685229458,0.001,34636.0,34634.0,3.80287854]
[1625685229605,0.001,34636.0,34635.0,3.56016024]
[1625685234411,0.001,34636.0,34635.0,0.00484211]
[1625685234559,0.001,34636.0,34634.0,0.24057544]
[1625685238242,0.08408599,34636.0,34634.0,0.24057544]
[1625685239219,0.001,34637.0,34634.0,1.5959001]
[1625685239520,0.16798623,34636.0,34634.0,1.5959001]
[1625685239672,0.16798623,34636.0,34635.0,2.20240884]
[1625685240345,0.16798623,34636.0,34635.0,3.55780424]
[1625685244399,0.16915349,34637.0,34635.0,3.55780424]
[1625685244698,0.16915349,34637.0,34636.0,3.55965152]
[1625685245006,0.16915349,34637.0,34636.0,3.56449445]
[1625685245900,0.001,34637.0,34636.0,3.56449445]
[1625685246049,0.001,34637.0,34636.0,3.80506989]
[1625685247185,0.1690127,34637.0,34636.0,3.80506989]
[1625685248227,0.1690127,34637.0,34636.0,8.45006989]
[1625685248678,0.001,34637.0,34636.0,8.45006989]
[1625685250111,0.16891848,34637.0,34636.0,8.45006989]
[1625685251455,0.001,34637.0,34636.0,8.45006989]
[1625685254464,0.001,34637.0,34636.0,6.24647609]
[1625685254620,0.001,34637.0,34636.0,8.45092463]
[1625685256272,1.01191994,34638.0,34636.0,8.45092463]
[1625685256506,1.01191994,34638.0,34637.0,3.56231442]
[1625685256795,1.01191994,34638.0,34637.0,3.56715757]
[1625685258072,1.01191994,34638.0,34637.0,4.52945933]
[1625685266795,0.001,34638.0,34637.0,4.52945933]
[1625685267156,0.001,34638.0,34637.0,6.05737726]
[1625685268294,1.01374034,34639.0,34637.0,6.05737726]
[1625685268735,1.01374034,34639.0,34638.0,3.57025629]
[1625685269643,2.19487231,34639.0,34638.0,3.57025629]
[1625685269941,3.55688284,34639.0,34638.0,2.21200343]
[1625685270104,3.55688284,34639.0,34638.0,1.02353217]
[1625685270237,7.11628284,34639.0,34638.0,1.02353217]
[1625685271439,8.63308488,34639.0,34638.0,0.00484252]
[1625685274966,8.86686488,34639.0,34638.0,0.00484252]
[1625685275491,8.86686488,34639.0,34638.0,0.04744252]
[1625685277296,8.86586488,34639.0,34638.0,0.04744252]
[1625685279171,9.54008124,34639.0,34638.0,0.72691605]
[1625685282776,9.52689355,34639.0,34638.0,0.72691605]
[1625685283903,9.54009833,34639.0,34638.0,0.72691605]
[1625685284880,9.54009833,34639.0,34638.0,0.04744252]
[1625685285480,9.54009833,34639.0,34638.0,0.21243223]
[1625685285855,9.54009833,34639.0,34638.0,0.0426]
[1625685287206,9.54009833,34639.0,34638.0,0.21240866]
[1625685290064,9.54009833,34639.0,34638.0,0.21725288]
[1625685290364,9.54009833,34639.0,34638.0,0.04744422]
[1625685291415,9.54009833,34639.0,34638.0,0.7265797]
[1625685291416,8.01009151,34639.0,34638.0,0.7265797]
[1625685294193,8.02327957,34639.0,34638.0,0.7265797]
[1625685296075,8.02327957,34639.0,34638.0,1.74529065]
[1625685298100,8.02327957,34639.0,34638.0,0.7265797]
[1625685298628,8.02327957,34639.0,34638.0,1.74531434]
[1625685299528,7.78949957,34639.0,34638.0,1.74531434]
[1625685301182,7.78949957,34639.0,34638.0,0.7265797]
[1625685301331,8.06359957,34639.0,34638.0,0.7265797]
[1625685303281,8.06359957,34639.0,34638.0,1.74531817]
[1625685306894,8.06359957,34639.0,34638.0,0.7265797]
[1625685308088,8.06359957,34639.0,34638.0,1.74547653]
[1625685309141,8.57036753,34639.0,34638.0,2.25493953]
[1625685309889,8.57036753,34639.0,34638.0,1.2360427]
[1625685310040,8.57036753,34639.0,34638.0,2.25498396]
[1625685310494,8.57036753,34639.0,34638.0,1.2360427]
[1625685310645,10.08993439,34639.0,34638.0,1.2360427]
[1625685312835,8.57036753,34639.0,34638.0,2.25510214]
[1625685313499,10.09014881,34639.0,34638.0,1.2360427]
[1625685316583,10.09014881,34639.0,34638.0,2.25525845]
[1625685317328,8.57036753,34639.0,34638.0,2.25525845]
[1625685318303,10.09065092,34639.0,34638.0,2.25525845]
[1625685319130,8.57036753,34639.0,34638.0,2.25525845]
[1625685322439,10.09126682,34639.0,34638.0,2.25525845]
[1625685325598,10.09126682,34639.0,34638.0,3.21756021]
[1625685328298,10.09126682,34639.0,34638.0,4.40749008]
[1625685337983,10.09126682,34639.0,34638.0,3.21756021]
[1625685344893,10.09126682,34639.0,34638.0,2.25525845]
[1625685345495,10.09126682,34639.0,34638.0,1.2360427]
[1625685346019,10.09126682,34639.0,34638.0,1.95776902]
[1625685347749,10.09126682,34639.0,34638.0,2.97839622]
[1625685348800,10.09126682,34639.0,34638.0,4.16908915]
[1625685349176,10.09126682,34639.0,34638.0,2.97839622]
[1625685350604,10.09126682,34639.0,34638.0,4.16917293]
[1625685351281,10.09126682,34639.0,34638.0,2.97839622]
[1625685352414,10.09126682,34639.0,34638.0,4.16921333]
[1625685366299,10.09126682,34639.0,34638.0,2.97839622]
[1625685367725,10.09126682,34639.0,34638.0,4.16665737]
[1625685368475,10.09126682,34639.0,34638.0,2.97839622]
[1625685368624,10.09126682,34639.0,34638.0,4.1667201]
[1625685369452,10.09126682,34639.0,34638.0,2.97839622]
[1625685370357,10.09126682,34639.0,34638.0,4.16687591]
[1625685370808,10.09126682,34639.0,34638.0,2.97839622]
[1625685372543,10.09126682,34639.0,34638.0,4.16776658]
[1625685372760,10.09126682,34639.0,34638.0,2.97839622]
[1625685381021,10.09126682,34639.0,34638.0,4.16903614]
[1625685382311,10.09126682,34639.0,34638.0,2.97839622]
[1625685384249,10.09126682,34639.0,34638.0,4.16905733]
[1625685384403,9.81716682,34639.0,34638.0,4.46115733]
[1625685387714,9.81716682,34639.0,34638.0,3.27049622]
[1625685387854,9.81716682,34639.0,34638.0,2.97839622]
[1625685388002,9.81716682,34639.0,34638.0,4.16907104]
[1625685391014,9.81716682,34639.0,34638.0,3.44734472]
[1625685391459,9.81716682,34639.0,34638.0,4.16907104]
[1625685392061,9.81716682,34639.0,34638.0,2.97839622]
[1625685395438,6.25776682,34639.0,34638.0,2.97839622]
[1625685395891,10.97946682,34639.0,34638.0,2.97839622]
[1625685397243,15.58476682,34639.0,34638.0,2.97839622]
[1625685403855,15.58476682,34639.0,34638.0,1.95776902]
[1625685405578,15.82534226,34639.0,34638.0,1.95776902]
[1625685407154,15.82534226,34639.0,34638.0,2.97824962]
[1625685407459,19.63574226,34639.0,34638.0,6.45694962]
[1625685408434,19.63574226,34639.0,34638.0,2.97824962]
[1625685408585,19.63574226,34639.0,34638.0,1.95776902]
[1625685411435,19.63574226,34639.0,34638.0,1.27863354]
[1625685411737,19.63574226,34639.0,34638.0,1.9588663]
[1625685412186,19.63574226,34639.0,34638.0,1.27863354]
[1625685413837,19.63574226,34639.0,34638.0,1.61873846]
[1625685416019,19.63574226,34639.0,34638.0,1.10927546]
[1625685416167,19.63574226,34639.0,34638.0,1.27931079]
[1625685418423,21.32379681,34639.0,34638.0,0.76917054]
[1625685418573,19.63574226,34639.0,34638.0,0.93920244]
[1625685419023,20.63574226,34639.0,34638.0,0.93920244]
[1625685419323,20.63574226,34639.0,34638.0,1.02422021]
[1625685420528,20.63574226,34639.0,34638.0,0.76917054]
[1625685420529,22.32290149,34639.0,34638.0,0.76917054]
[1625685420680,21.32290149,34639.0,34638.0,0.85418745]
[1625685420829,8.18550149,34639.0,34638.0,0.85418745]
[1625685420982,8.18550149,34639.0,34638.0,1.02421935]
[1625685420983,6.25776682,34639.0,34638.0,1.02421935]
[1625685421202,6.25776682,34639.0,34638.0,1.27925885]
[1625685421953,6.25776682,34639.0,34638.0,1.27926182]
[1625685422415,6.25776682,34639.0,34638.0,1.95937776]
[1625685422706,6.25776682,34639.0,34638.0,1.27926182]
[1625685422860,6.25776682,34639.0,34638.0,1.95939593]
[1625685428572,6.25776682,34639.0,34638.0,1.23766961]
[1625685429170,6.25776682,34639.0,34638.0,2.25790358]
[1625685429852,6.25776682,34639.0,34638.0,2.9796299]
[1625685430001,6.34396682,34639.0,34638.0,2.9796299]
[1625685430148,6.34396682,34639.0,34638.0,2.25790358]
[1625685430309,6.34396682,34639.0,34636.0,0.74482195]
[1625685430451,7.37801172,34639.0,34634.0,1.19036537]
[1625685430604,0.5,34638.0,34634.0,0.83476537]
[1625685430758,1.0,34637.0,34634.0,0.25166537]
[1625685430902,0.5,34636.0,34628.0,0.08703871]
[1625685431049,1.34500594,34629.0,34628.0,0.04373871]
[1625685431204,1.34500594,34629.0,34623.0,1.135842]
[1625685431205,6.21233471,34629.0,34623.0,0.003]
[1625685431363,0.21381614,34626.0,34623.0,0.003]
[1625685431508,0.5,34625.0,34609.0,0.16973785]
[1625685431649,2.00836512,34610.0,34606.0,0.16975952]
[1625685431801,3.78994529,34610.0,34606.0,0.16975952]
[1625685431955,3.78994529,34610.0,34604.0,0.67903807]
[1625685431956,4.23429413,34607.0,34604.0,0.16977437]
[1625685432253,2.00697958,34605.0,34603.0,0.16977624]
[1625685432405,2.00697958,34605.0,34602.0,0.67909748]
[1625685432406,2.00599857,34604.0,34602.0,0.16978457]
[1625685432700,2.00575129,34603.0,34601.0,0.16978232]
[1625685432855,2.30391129,34603.0,34601.0,0.16978232]
[1625685433013,2.00575034,34602.0,34601.0,0.16978232]
[1625685433151,2.00575034,34602.0,34600.0,0.91970083]
[1625685433152,3.00575034,34602.0,34600.0,0.24057544]
[1625685433456,1.99981296,34601.0,34600.0,0.24057544]
[1625685433603,0.66665986,34601.0,34600.0,0.24057544]
[1625685433914,0.66665986,34601.0,34600.0,0.48115088]
[1625685434202,0.66665986,34601.0,34600.0,0.65054762]
[1625685434352,0.66665986,34601.0,34600.0,0.48115088]
[1625685435629,0.16676978,34601.0,34600.0,0.48115088]
[1625685436604,0.16784594,34602.0,34600.0,0.65026916]
[1625685437057,0.001,34602.0,34600.0,0.48115088]
[1625685443972,1.001,34602.0,34600.0,0.48115088]
[1625685444118,0.40677703,34601.0,34600.0,0.24057544]
[1625685444566,0.24057544,34601.0,34600.0,0.24057544]
[1625685451704,1.24057544,34601.0,34600.0,0.24057544]
[1625685453350,0.24057544,34601.0,34600.0,0.24057544]
[1625685453499,1.24057544,34601.0,34600.0,0.24057544]
[1625685454698,1.24057544,34601.0,34596.0,0.24057544]
[1625685455600,1.40593968,34601.0,34596.0,0.24057544]
[1625685456126,0.24057544,34597.0,34596.0,0.24057544]
[1625685456275,1.52793544,34597.0,34596.0,0.24057544]
[1625685456575,0.52793544,34597.0,34596.0,0.24057544]
[1625685456877,1.52793544,34597.0,34596.0,0.24057544]
[1625685461762,0.52793544,34597.0,34596.0,0.24057544]
[1625685462052,1.52793544,34597.0,34596.0,0.24057544]
[1625685462501,0.52793544,34597.0,34596.0,0.24057544]
[1625685464158,1.52793544,34597.0,34596.0,0.24057544]
[1625685466330,0.52893544,34597.0,34596.0,0.24057544]
[1625685466482,0.24157544,34597.0,34596.0,0.24057544]
[1625685470082,0.24157544,34597.0,34596.0,0.2454187]
[1625685470383,0.24157544,34597.0,34596.0,0.24057544]
[1625685470683,0.24157544,34597.0,34596.0,0.24541875]
[1625685472936,0.001,34597.0,34596.0,0.24541875]
[1625685474211,0.001,34597.0,34596.0,0.48599419]
[1625685489008,0.001,34597.0,34596.0,1.16293824]
[1625685489978,0.66944697,34597.0,34596.0,3.36963927]
[1625685490282,1.67201623,34597.0,34596.0,3.36963927]
[1625685490577,0.66944697,34597.0,34596.0,3.36963927]
[1625685491704,0.66944697,34597.0,34596.0,4.72823445]
[1625685495306,0.001,34597.0,34596.0,4.72823445]
[1625685498014,0.16844166,34597.0,34596.0,4.72823445]
[1625685498466,1.17074437,34601.0,34596.0,4.72823445]
[1625685498770,1.17327946,34602.0,34600.0,1.18878613]
[1625685499215,1.17327946,34602.0,34601.0,1.19362655]
[1625685499216,0.002,34602.0,34601.0,1.19362655]
[1625685499365,1.1715842,34603.0,34601.0,1.19362655]
[1625685499815,1.1715842,34603.0,34602.0,0.0048619]
[1625685499965,8.42e-05,34603.0,34602.0,0.3262919]
[1625685500416,0.003,34607.0,34602.0,0.80744278]
[1625685500717,1.33878223,34605.0,34602.0,0.80744278]
[1625685500867,1.33878223,34605.0,34603.0,0.00486186]
[1625685501470,1.34242482,34607.0,34603.0,0.00486186]
[1625685501920,1.33928176,34606.0,34603.0,0.00486186]
[1625685502222,0.003,34607.0,34603.0,0.00486186]
[1625685502223,1.3423148,34607.0,34603.0,0.00486186]
[1625685502371,1.3423148,34607.0,34606.0,0.48115088]
[1625685502522,0.003,34607.0,34606.0,0.48115088]
[1625685502672,1.34205785,34607.0,34606.0,0.48601268]
[1625685503574,1.35521601,34607.0,34606.0,0.48601268]
[1625685508309,1.35221601,34607.0,34606.0,0.48601268]
[1625685512147,0.24303816,34607.0,34606.0,0.48601268]
[1625685512593,3.08525793,34607.0,34606.0,0.48601268]
[1625685517327,3.08625793,34607.0,34606.0,0.48601268]
[1625685517474,1.74873291,34607.0,34606.0,0.48601268]
[1625685517623,3.08614489,34607.0,34606.0,0.48601268]
[1625685520250,4.25621525,34607.0,34606.0,0.48601268]
[1625685520400,4.75778663,34607.0,34606.0,0.48601268]
[1625685528733,5.76183267,34607.0,34606.0,0.48601268]
[1625685537897,5.74867451,34607.0,34606.0,0.48115088]
[1625685538047,5.76183852,34607.0,34606.0,0.48601201]
[1625685541654,5.76183852,34607.0,34606.0,0.99665435]
[1625685542934,5.76183852,34607.0,34606.0,2.01789724]
[1625685543528,5.76183852,34607.0,34606.0,0.99665435]
[1625685543678,5.76183852,34607.0,34606.0,2.01787086]
[1625685545859,5.76183852,34607.0,34606.0,0.99665435]
[1625685547810,5.76183852,34607.0,34606.0,0.48601201]
[1625685549016,7.42973124,34607.0,34606.0,0.48601201]
[1625685550065,7.42973124,34607.0,34602.0,0.24057544]
[1625685550066,8.42973124,34607.0,34602.0,0.24057544]
[1625685550371,5.5000106,34603.0,34602.0,0.24057544]
[1625685550665,5.98116148,34603.0,34602.0,0.24057544]
[1625685550823,5.99432632,34603.0,34602.0,0.24543734]
[1625685550965,8.6594779,34603.0,34602.0,0.24543734]
[1625685551115,8.6594779,34603.0,34602.0,0.24057544]
[1625685551878,8.6594779,34603.0,34600.0,0.001]
[1625685552090,7.15488305,34601.0,34600.0,0.001]
[1625685552466,7.16804903,34601.0,34600.0,0.001]
[1625685552616,7.40862447,34601.0,34600.0,0.001]
[1625685552919,8.40862447,34601.0,34600.0,0.001]
[1625685553370,8.40862447,34601.0,34597.0,0.24057544]
[1625685553667,5.48372135,34598.0,34597.0,0.24057544]
[1625685553816,5.71054135,34598.0,34597.0,0.24057544]
[1625685554117,5.72370758,34598.0,34597.0,0.24057544]
[1625685554417,6.72370758,34598.0,34597.0,0.24057544]
[1625685554720,6.96428302,34598.0,34597.0,0.24057544]
[1625685555171,6.95111679,34598.0,34597.0,0.24057544]
[1625685555624,5.95111679,34598.0,34597.0,0.24057544]
[1625685558552,6.6151149,34598.0,34597.0,0.24057544]
[1625685559308,7.6151149,34598.0,34597.0,0.24057544]
[1625685559531,6.6151149,34598.0,34597.0,0.24057544]
[1625685559680,7.6151149,34598.0,34597.0,0.24057544]
[1625685562009,6.6151149,34598.0,34597.0,0.24057544]
[1625685562312,7.6151149,34598.0,34597.0,0.24057544]
[1625685563061,6.6151149,34598.0,34597.0,0.24057544]
[1625685564117,7.6151149,34598.0,34597.0,0.24057544]
[1625685572070,7.62827658,34598.0,34597.0,0.24057544]
[1625685572672,7.6151149,34598.0,34597.0,0.24057544]
[1625685575230,6.6151149,34598.0,34597.0,0.24057544]
[1625685575600,6.62827632,34598.0,34597.0,0.24057544]
[1625685576351,7.62827632,34598.0,34597.0,0.24057544]
[1625685576650,6.62827632,34598.0,34597.0,0.24057544]
[1625685577260,7.62827632,34598.0,34597.0,0.24057544]
[1625685582439,7.662363,34598.0,34597.0,0.24057544]
[1625685582739,7.62827632,34598.0,34597.0,0.24057544]
[1625685587482,7.66236367,34598.0,34597.0,0.24057544]
[1625685588225,7.62827632,34598.0,34597.0,0.24057544]
[1625685589956,6.62827632,34598.0,34597.0,0.24057544]
[1625685591983,6.62827632,34598.0,34597.0,0.24543548]
[1625685593412,6.62827632,34598.0,34597.0,0.24057544]
[1625685593554,7.62827632,34598.0,34597.0,0.24057544]
[1625685594002,7.62827632,34598.0,34597.0,0.2454355]
[1625685594154,6.62827632,34598.0,34597.0,0.2454355]
[1625685595057,7.62827632,34598.0,34597.0,0.24057544]
[1625685595579,7.62827632,34598.0,34597.0,0.24543552]
[1625685595880,7.62827632,34598.0,34597.0,0.24057544]
[1625685596331,6.62827632,34598.0,34597.0,0.24543552]
[1625685596633,6.40145632,34598.0,34597.0,0.24543552]
[1625685597237,6.16088088,34598.0,34597.0,0.24543552]
[1625685597759,4.66538093,34598.0,34597.0,0.24543552]
[1625685598960,4.66538093,34598.0,34597.0,0.48601096]
[1625685605342,4.96545093,34598.0,34597.0,0.48601096]
[1625685605792,4.96545093,34598.0,34597.0,0.48115088]
[1625685605943,0.31323142,34598.0,34597.0,0.48115088]
[1625685606243,6.44587071,34598.0,34597.0,0.48115088]
[1625685607068,8.10393038,34598.0,34597.0,0.48115088]
[1625685607218,8.34450582,34598.0,34597.0,0.48115088]
[1625685608720,9.34450582,34598.0,34597.0,0.48115088]
[1625685609927,8.34450582,34598.0,34597.0,0.48115088]
[1625685617138,9.34450582,34598.0,34597.0,0.48115088]
[1625685618946,9.3313444,34598.0,34597.0,0.48115088]
[1625685619092,9.34451083,34598.0,34597.0,0.48115088]
[1625685619767,8.34451083,34598.0,34597.0,0.48115088]
[1625685620078,9.34451083,34598.0,34597.0,0.48115088]
[1625685621495,8.34451083,34598.0,34597.0,0.48115088]
[1625685621645,9.34451083,34598.0,34597.0,0.48115088]
[1625685622546,8.34451083,34598.0,34597.0,0.48115088]
[1625685623978,8.34451083,34598.0,34597.0,0.81335088]
[1625685624425,6.68645116,34598.0,34597.0,0.81335088]
[1625685627579,6.68645116,34598.0,34597.0,0.48115088]
[1625685627884,8.33793135,34598.0,34597.0,0.48115088]
[1625685628628,6.68645116,34598.0,34597.0,0.48115088]
[1625685630888,6.68645116,34598.0,34597.0,0.48602225]
[1625685631410,6.68645116,34598.0,34597.0,0.48115088]
[1625685633212,8.3382053,34598.0,34597.0,0.48115088]
[1625685638771,8.3382053,34598.0,34597.0,0.47785088]
[1625685639069,8.3382053,34598.0,34597.0,0.47365088]
[1625685641095,3.69721294,34598.0,34597.0,0.47365088]
[1625685641399,8.31988449,34598.0,34597.0,0.47365088]
[1625685651090,6.66813035,34598.0,34597.0,0.47365088]
[1625685652143,6.66813035,34598.0,34597.0,0.47852137]
[1625685657108,8.31897933,34598.0,34597.0,0.47852137]
[1625685657398,6.66813035,34598.0,34597.0,0.47852137]
[1625685657623,8.31876256,34598.0,34597.0,0.47365088]
[1625685659573,8.31876256,34598.0,34595.0,0.9119]
[1625685659726,9.35285334,34598.0,34595.0,0.9119]
[1625685659874,8.23053119,34596.0,34595.0,0.9119]
[1625685660178,9.42821476,34596.0,34595.0,0.9119]
[1625685660323,9.47545579,34596.0,34595.0,0.9119]
[1625685660942,9.47545579,34596.0,34595.0,0.57093599]
[1625685661240,8.47545579,34596.0,34595.0,0.57093599]
[1625685661527,9.47545579,34596.0,34595.0,0.57093599]
[1625685662961,9.27777222,34596.0,34595.0,0.57093599]
[1625685663556,9.47542317,34596.0,34595.0,0.57093599]
[1625685663712,8.47542317,34596.0,34595.0,0.57093599]
[1625685663857,8.24367888,34596.0,34595.0,0.57093599]
[1625685665058,9.24367888,34596.0,34595.0,0.57093599]
[1625685666257,8.24367888,34596.0,34595.0,0.57093599]
[1625685666567,9.24367888,34596.0,34595.0,0.57093599]
[1625685666710,8.24367888,34596.0,34595.0,0.57093599]
[1625685666860,9.24367888,34596.0,34595.0,0.57093599]
[1625685667011,8.24367888,34596.0,34595.0,0.57093599]
[1625685667309,8.24467888,34596.0,34595.0,0.57093599]
[1625685668588,9.24467888,34596.0,34595.0,0.57093599]
[1625685669197,8.24467888,34596.0,34595.0,0.57093599]
[1625685669938,9.24467888,34596.0,34595.0,0.57093599]
[1625685670396,8.24467888,34596.0,34595.0,0.57093599]
[1625685670541,8.27877478,34596.0,34595.0,0.57093599]
[1625685670700,8.27877478,34596.0,34595.0,0.22995799]
[1625685670701,9.47622031,34596.0,34595.0,0.22995799]
[1625685670839,9.47622031,34596.0,34590.0,0.9234]
[1625685670991,7.73261202,34591.0,34590.0,0.9234]
[1625685671142,7.97568202,34591.0,34590.0,0.9234]
[1625685671292,7.98883122,34591.0,34590.0,0.9234]
[1625685671899,8.98883122,34591.0,34590.0,0.9234]
[1625685672043,9.22940666,34591.0,34590.0,0.9234]
[1625685672340,9.22940666,34591.0,34589.0,0.001]
[1625685672496,8.22940666,34591.0,34589.0,0.001]
[1625685672643,0.01314971,34590.0,34589.0,0.001]
[1625685672794,7.73700256,34590.0,34584.0,0.002]
[1625685673096,6.08201479,34585.0,34584.0,0.002]
[1625685673393,6.08201479,34585.0,34583.0,0.32057544]
[1625685673695,6.08169635,34584.0,34583.0,0.32057544]
[1625685673854,6.32461635,34584.0,34583.0,0.32057544]
[1625685673999,6.56519179,34584.0,34583.0,0.32057544]
[1625685674895,7.56519179,34584.0,34583.0,0.32057544]
[1625685676097,7.80576723,34584.0,34583.0,0.32057544]
[1625685677984,6.80576723,34584.0,34583.0,0.32057544]
[1625685680907,7.80576723,34584.0,34583.0,0.32057544]
[1625685681208,6.32651119,34584.0,34583.0,0.32057544]
[1625685681506,5.32651119,34584.0,34583.0,0.32057544]
[1625685681661,5.08359119,34584.0,34583.0,0.32057544]
[1625685682786,5.38883119,34584.0,34583.0,0.32057544]
[1625685683085,6.38883119,34584.0,34583.0,0.32057544]
[1625685683382,5.38883119,34584.0,34583.0,0.32057544]
[1625685683532,6.38883119,34584.0,34583.0,0.08]
[1625685683835,7.86384041,34584.0,34583.0,0.08]
[1625685683985,7.87687379,34584.0,34583.0,0.08]
[1625685684133,8.11744923,34584.0,34583.0,0.08]
[1625685684287,8.11744923,34584.0,34578.0,0.001]
[1625685684434,9.3409268,34584.0,34578.0,0.001]
[1625685684603,6.0534518,34579.0,34570.0,0.9654]
[1625685684734,6.0534518,34579.0,34567.0,1.08164126]
[1625685684885,1.14420087,34568.0,34567.0,0.65964126]
[1625685685035,2.45697775,34568.0,34567.0,0.65964126]
[1625685685187,2.45697775,34568.0,34567.0,0.5748]
[1625685685188,3.60036704,34568.0,34567.0,0.5748]
[1625685685335,4.60036704,34568.0,34567.0,0.57971642]
[1625685685637,4.60036704,34568.0,34567.0,0.5748]
[1625685685785,5.90635872,34568.0,34567.0,0.5748]
[1625685686085,6.86866048,34568.0,34567.0,0.5748]
[1625685686385,5.86866048,34568.0,34567.0,0.5748]
[1625685686535,4.5626688,34568.0,34567.0,0.5748]
[1625685686988,3.41927951,34568.0,34567.0,0.5748]
[1625685688723,2.43865263,34568.0,34567.0,0.5748]
[1625685689169,2.111226,34568.0,34567.0,0.5748]
[1625685689613,1.78409889,34568.0,34567.0,0.5748]
[1625685689763,1.45194889,34568.0,34567.0,0.5748]
[1625685689913,1.5336626,34568.0,34567.0,0.5748]
[1625685690219,1.04401547,34568.0,34567.0,0.81537544]
[1625685690364,0.96230176,34568.0,34567.0,1.32860262]
[1625685690664,0.96230176,34568.0,34567.0,1.41329723]
[1625685690965,0.96230176,34568.0,34567.0,0.82030791]
[1625685691415,0.96230176,34568.0,34567.0,0.90500375]
[1625685691790,0.48115088,34568.0,34567.0,0.90500375]
[1625685692091,0.24505118,34570.0,34567.0,1.80963203]
[1625685692390,0.24505118,34570.0,34567.0,1.89432774]
[1625685692540,0.24505118,34570.0,34568.0,0.00493267]
[1625685692841,0.24490302,34569.0,34567.0,1.29652632]
[1625685693445,0.08167665,34568.0,34567.0,1.29652632]
[1625685694042,0.37862665,34568.0,34567.0,1.29652632]
[1625685694352,0.78620574,34568.0,34567.0,1.29652632]
[1625685694643,0.8678621,34568.0,34567.0,1.29652632]
[1625685694798,0.29695,34568.0,34567.0,1.29652632]
[1625685695094,0.37859877,34568.0,34567.0,1.29652632]
[1625685695394,0.54171307,34568.0,34567.0,1.29652632]
[1625685695999,0.29695,34568.0,34567.0,1.29652632]
[1625685696299,0.37859668,34568.0,34567.0,1.29652632]
[1625685696447,0.08164668,34568.0,34567.0,1.29652632]
[1625685696596,0.5709171,34569.0,34567.0,1.29652632]
[1625685696895,0.24478439,34569.0,34567.0,1.29652632]
[1625685697350,0.08261801,34568.0,34567.0,1.29652632]
[1625685697496,0.24567679,34568.0,34567.0,1.29652632]
[1625685697798,0.001,34568.0,34567.0,1.29652632]
[1625685699228,0.08260852,34568.0,34567.0,1.29652632]
[1625685699527,0.08260852,34568.0,34567.0,1.30145941]
[1625685699904,0.001,34568.0,34567.0,1.30145941]
[1625685700055,0.001,34568.0,34567.0,1.29652632]
[1625685700359,0.001,34568.0,34567.0,1.30145937]
[1625685708165,0.08257971,34568.0,34567.0,1.30145937]
[1625685708317,0.24556985,34568.0,34567.0,1.30145937]
[1625685708845,0.08257971,34568.0,34567.0,1.30145937]
[1625685708991,0.001,34568.0,34567.0,1.30145937]